bitfinex-derivatives/quotes_BNBF0:USTF0_20250511
["timestamp","ask_amount","ask_price","bid_price","bid_amount"]
[1746937278523,0.26076205,668.39,666.64,0.300012]
[1746937279118,0.24400864,668.38,666.64,0.300012]
[1746937280623,0.24400864,668.41,666.64,0.300012]
[1746937281324,0.24400864,668.8,666.64,0.300012]
[1746937281619,0.26071712,668.4,666.64,0.300012]
[1746937281923,0.24400864,668.79,666.64,0.300012]
[1746937282119,0.24400864,668.39,666.64,0.300012]
[1746937282323,0.24400864,668.8,666.64,0.300012]
[1746937282723,0.24400864,668.79,666.64,0.300012]
[1746937282923,0.50470037,668.79,666.64,0.300012]
[1746937283123,0.24400864,668.78,666.64,0.300012]
[1746937283326,0.24400864,668.77,666.64,0.300012]
[1746937283626,1.95088689,668.59,666.64,0.300012]
[1746937284126,0.24400864,668.58,666.64,0.300012]
[1746937284424,0.24400864,668.57,666.64,0.300012]
[1746937284626,0.50472186,668.57,666.64,0.300012]
[1746937284923,0.24400864,668.56,666.64,0.300012]
[1746937285319,0.24400864,668.55,666.64,0.300012]
[1746937285523,1.95088689,668.46,666.64,0.300012]
[1746937286124,0.24400864,668.45,666.64,0.300012]
[1746937286526,0.24400864,668.44,666.64,0.300012]
[1746937286821,0.24400864,668.43,666.64,0.300012]
[1746937287324,0.24400864,668.42,666.64,0.300012]
[1746937287525,0.50474432,668.42,666.64,0.300012]
[1746937287825,0.24400864,668.41,666.64,0.300012]
[1746937288225,0.24400864,668.4,666.64,0.300012]
[1746937288527,0.24400864,668.39,666.64,0.300012]
[1746937289027,0.24400864,668.38,666.64,0.300012]
[1746937289326,0.24400864,668.37,666.64,0.300012]
[1746937289622,0.24400864,668.36,666.64,0.300012]
[1746937289928,1.95088689,669.26,666.64,0.300012]
[1746937289929,0.24400864,668.47,666.64,0.300012]
[1746937290325,0.24400864,668.49,666.64,0.300012]
[1746937290523,0.26093607,668.46,666.64,0.300012]
[1746937290925,0.24400864,668.45,666.64,0.300012]
[1746937292527,0.24400864,668.45,666.65,0.679]
[1746937292725,0.24400864,668.45,666.67,0.2999985]
[1746937292922,0.24400864,669.19,666.67,0.2999985]
[1746937293127,0.24400864,669.18,666.67,0.2999985]
[1746937293527,0.24400864,669.17,666.67,0.2999985]
[1746937293726,0.24400864,669.16,666.67,0.2999985]
[1746937294026,0.24400864,669.15,666.67,0.2999985]
[1746937294527,0.24400864,669.14,666.67,0.2999985]
[1746937294723,0.24400864,669.13,666.67,0.2999985]
[1746937295040,0.24400864,669.12,666.67,0.2999985]
[1746937295627,0.24400864,669.11,666.67,0.2999985]
[1746937296027,0.26069564,669.17,666.67,0.2999985]
[1746937296028,1.95088689,668.43,666.67,0.2999985]
[1746937296327,0.24400864,668.42,666.67,0.2999985]
[1746937296628,0.24400864,668.41,666.67,0.2999985]
[1746937297030,0.24400864,668.4,666.67,0.2999985]
[1746937297330,0.24400864,668.39,666.67,0.2999985]
[1746937297626,0.24400864,668.38,666.67,0.2999985]
[1746937297925,0.24400864,668.37,666.67,0.2999985]
[1746937298425,0.24400864,668.36,666.67,0.2999985]
[1746937298624,0.24400864,668.35,666.67,0.2999985]
[1746937298926,0.24400864,668.34,666.67,0.2999985]
[1746937299425,0.24400864,668.33,666.67,0.2999985]
[1746937299630,0.50475995,668.33,666.67,0.2999985]
[1746937299926,0.24400864,668.32,666.67,0.2999985]
[1746937300330,0.24400864,668.31,666.67,0.2999985]
[1746937300630,0.24400864,668.3,666.67,0.2999985]
[1746937301030,0.24400864,668.29,666.67,0.2999985]
[1746937301326,0.24400864,668.28,666.67,0.2999985]
[1746937301830,1.95088689,668.25,666.67,0.2999985]
[1746937302031,0.24400864,668.24,666.67,0.2999985]
[1746937302431,0.24400864,668.23,666.67,0.2999985]
[1746937302732,0.24400864,668.22,666.67,0.2999985]
[1746937303032,0.24400864,668.21,666.67,0.2999985]
[1746937303331,0.24400864,668.2,666.67,0.2999985]
[1746937303727,0.24400864,668.19,666.67,0.2999985]
[1746937304031,1.95088689,668.02,666.67,0.2999985]
[1746937304627,0.24400864,668.01,666.67,0.2999985]
[1746937304932,0.24400864,668.0,666.67,0.2999985]
[1746937305333,0.24400864,667.99,666.67,0.2999985]
[1746937305729,0.24400864,667.98,666.67,0.2999985]
[1746937306028,0.24400864,667.97,666.67,0.2999985]
[1746937306434,0.24400864,667.98,666.67,0.2999985]
[1746937307132,2.21168021,667.99,666.67,0.2999985]
[1746937307330,1.95088689,667.99,666.67,0.2999985]
[1746937307529,0.24395623,667.98,666.67,0.2999985]
[1746937308631,0.26094977,667.97,666.67,0.2999985]
[1746937309128,0.24395623,667.96,666.67,0.2999985]
[1746937309433,0.24395623,667.96,666.68,0.6]
[1746937309630,0.24395623,667.96,666.7,0.299985]
[1746937311035,0.24395623,668.06,666.7,0.299985]
[1746937311434,0.24395623,668.17,666.7,0.299985]
[1746937311634,0.2607855,668.05,666.7,0.299985]
[1746937311934,0.24395623,668.16,666.7,0.299985]
[1746937312234,0.24395623,668.04,666.7,0.299985]
[1746937312430,0.24395623,668.17,666.7,0.299985]
[1746937312735,0.26077476,668.03,666.7,0.299985]
[1746937313036,0.24395623,668.16,666.7,0.299985]
[1746937313235,0.24395623,668.02,666.7,0.299985]
[1746937313434,0.50473099,668.02,666.7,0.299985]
[1746937313630,0.26077476,668.02,666.7,0.299985]
[1746937314032,0.24395623,668.01,666.7,0.299985]
[1746937316338,0.24395623,668.0,666.7,0.299985]
[1746937316735,0.24395623,667.99,666.7,0.299985]
[1746937317138,0.24395623,668.01,666.7,0.299985]
[1746937318239,0.24395623,668.0,666.7,0.299985]
[1746937318739,0.24395623,668.01,666.7,0.299985]
[1746937319035,0.24395623,668.0,666.7,0.299985]
[1746937319335,0.24395623,668.01,666.7,0.299985]
[1746937319635,0.24395623,668.0,666.7,0.299985]
[1746937319841,0.26078257,667.99,666.7,0.299985]
[1746937320041,0.24395623,667.98,666.7,0.299985]
[1746937320537,0.24395623,667.97,666.7,0.299985]
[1746937321043,0.24395623,667.96,666.7,0.299985]
[1746937321445,0.24395623,667.98,666.7,0.299985]
[1746937322842,0.24395623,668.06,666.7,0.299985]
[1746937323243,0.24395623,668.05,666.7,0.299985]
[1746937323644,0.26078648,668.04,666.7,0.299985]
[1746937323838,0.50474271,668.04,666.7,0.299985]
[1746937324144,0.24395623,668.03,666.7,0.299985]
[1746937324846,2.19484312,668.03,666.7,0.299985]
[1746937325143,0.24395623,668.02,666.7,0.299985]
[1746937325541,0.24395623,668.01,666.7,0.299985]
[1746937325744,0.5047476,668.01,666.7,0.299985]
[1746937325945,0.24395623,668.0,666.7,0.299985]
[1746937326246,0.24395623,667.99,666.7,0.299985]
[1746937326643,1.95088689,667.9,666.7,0.299985]
[1746937327047,0.24395623,667.89,666.7,0.299985]
[1746937328247,0.24395623,667.89,666.71,0.57]
[1746937328547,0.24395623,667.89,666.73,0.2999715]
[1746937329144,0.24395623,668.25,666.73,0.2999715]
[1746937329544,0.50473978,668.24,666.73,0.2999715]
[1746937329744,0.24395623,668.23,666.73,0.2999715]
[1746937331650,0.24395623,668.25,666.73,0.2999715]
[1746937332045,0.24395623,668.24,666.73,0.2999715]
[1746937332548,0.26077476,668.23,666.73,0.2999715]
[1746937332951,0.24395623,668.22,666.73,0.2999715]
[1746937334749,0.24395623,668.36,666.73,0.2999715]
[1746937335146,0.24395623,668.35,666.73,0.2999715]
[1746937335449,0.24395623,668.34,666.73,0.2999715]
[1746937335749,0.24395623,668.33,666.73,0.2999715]
[1746937336149,0.24395623,668.32,666.73,0.2999715]
[1746937336449,0.24395623,668.31,666.73,0.2999715]
[1746937336845,0.24395623,668.3,666.73,0.2999715]
[1746937337150,0.24395623,668.29,666.73,0.2999715]
[1746937337545,0.24395623,668.28,666.73,0.2999715]
[1746937337845,0.24395623,668.27,666.73,0.2999715]
[1746937338146,0.24395623,668.26,666.73,0.2999715]
[1746937338347,1.95088689,668.14,666.73,0.2999715]
[1746937338846,0.24395623,668.13,666.73,0.2999715]
[1746937339351,0.24395623,668.12,666.73,0.2999715]
[1746937339652,0.24395623,668.11,666.73,0.2999715]
[1746937340047,1.95088689,667.9,666.73,0.2999715]
[1746937340348,0.24395623,667.89,666.73,0.2999715]
[1746937340746,0.24395623,667.88,666.73,0.2999715]
[1746937341046,0.24395623,667.87,666.73,0.2999715]
[1746937341552,0.24395623,667.89,666.73,0.2999715]
[1746937341847,0.26081091,667.86,666.73,0.2999715]
[1746937342348,0.24395623,667.85,666.73,0.2999715]
[1746937344051,0.24395623,667.87,666.73,0.2999715]
[1746937344346,0.24395623,667.86,666.73,0.2999715]
[1746937344551,0.5047691,667.86,666.73,0.2999715]
[1746937344851,0.24395623,667.85,666.73,0.2999715]
[1746937345251,0.24395623,667.84,666.73,0.2999715]
[1746937345551,0.24395623,667.83,666.73,0.2999715]
[1746937345947,0.24395623,667.82,666.73,0.2999715]
[1746937346253,1.95088689,667.74,666.73,0.2999715]
[1746937346651,0.24395623,667.73,666.73,0.2999715]
[1746937347653,0.26082655,667.72,666.73,0.2999715]
[1746937347947,0.24395623,667.71,666.73,0.2999715]
[1746937349550,0.24395623,667.76,666.73,0.2999715]
[1746937349853,1.95088689,667.77,666.73,0.2999715]
[1746937350153,0.24397505,667.76,666.73,0.2999715]
[1746937350547,0.26083144,667.75,666.73,0.2999715]
[1746937350851,0.24397505,667.74,666.73,0.2999715]
[1746937352854,0.26084317,667.73,666.73,0.2999715]
[1746937353452,0.24397505,667.72,666.73,0.2999715]
[1746937354953,0.24397505,667.72,666.74,0.484]
[1746937355154,0.24397505,667.72,666.76,0.299958]
[1746937355555,0.2607855,667.71,666.76,0.299958]
[1746937355959,0.24397505,667.7,666.76,0.299958]
[1746937356657,0.2607855,667.71,666.76,0.299958]
[1746937356859,0.24401784,667.7,666.76,0.299958]
[1746937358660,1.95088689,668.43,666.76,0.299958]
[1746937359054,0.24401783,668.42,666.76,0.299958]
[1746937359258,0.24401783,668.41,666.76,0.299958]
[1746937359660,0.50479943,668.4,666.76,0.299958]
[1746937360161,0.24401783,668.39,666.76,0.299958]
[1746937360456,1.95088689,668.12,666.76,0.299958]
[1746937360859,0.24401783,668.11,666.76,0.299958]
[1746937361262,0.24401783,668.1,666.76,0.299958]
[1746937361659,0.24401783,668.09,666.76,0.299958]
[1746937362060,0.24401783,668.08,666.76,0.299958]
[1746937362362,0.24401783,668.07,666.76,0.299958]
[1746937362563,1.95088689,667.88,666.76,0.299958]
[1746937363056,0.24401783,667.87,666.76,0.299958]
[1746937363363,0.24401783,667.86,666.76,0.299958]
[1746937363659,0.24401783,667.85,666.76,0.299958]
[1746937364162,0.24401783,667.84,666.76,0.299958]
[1746937364563,0.50487273,667.83,666.76,0.299958]
[1746937364867,1.95088689,667.34,666.76,0.299958]
[1746937365363,0.24401783,667.33,666.76,0.299958]
[1746937367365,0.24401783,667.58,666.76,0.299958]
[1746937367766,0.24401783,667.57,666.76,0.299958]
[1746937368165,0.24401783,667.56,666.76,0.299958]
[1746937368359,0.24401783,667.58,666.76,0.299958]
[1746937368663,0.26088325,667.55,666.76,0.299958]
[1746937369266,0.24401783,667.54,666.76,0.299958]
[1746937370663,0.2608725,667.53,666.76,0.299958]
[1746937370867,0.24401783,667.52,666.76,0.299958]
[1746937376775,1.95088689,667.76,666.76,0.299958]
[1746937376973,0.26101436,667.55,666.77,0.481]
[1746937377170,1.95088689,667.76,666.77,0.481]
[1746937377371,0.24400041,667.75,666.77,0.481]
[1746937377873,1.95088689,667.76,666.77,0.481]
[1746937378073,0.26083242,667.74,666.77,0.481]
[1746937378679,0.24400028,667.73,666.77,0.481]
[1746937379683,0.26082362,667.72,666.77,0.481]
[1746937379985,0.24400028,667.71,666.77,0.481]
[1746937382679,0.26082166,667.7,666.77,0.481]
[1746937383084,0.24400028,667.69,666.77,0.481]
[1746937384880,0.24400028,667.69,666.79,0.29994451]
[1746937385683,0.26077085,667.68,666.79,0.29994451]
[1746937386081,0.24400028,667.67,666.79,0.29994451]
[1746937386980,0.26077085,667.68,666.79,0.29994451]
[1746937387386,0.24397795,667.67,666.79,0.29994451]
[1746937389184,0.24397795,668.23,666.79,0.29994451]
[1746937389479,0.24397795,668.22,666.79,0.29994451]
[1746937389686,0.50475173,668.22,666.79,0.29994451]
[1746937389985,0.24397795,668.21,666.79,0.29994451]
[1746937390484,0.24397795,668.2,666.79,0.29994451]
[1746937391284,0.24397795,668.19,666.79,0.29994451]
[1746937391983,0.24397795,668.18,666.79,0.29994451]
[1746937392386,1.95088689,667.97,666.79,0.29994451]
[1746937392785,0.24397795,667.96,666.79,0.29994451]
[1746937393180,0.24397795,667.95,666.79,0.29994451]
[1746937393586,0.24397795,667.94,666.79,0.29994451]
[1746937393987,0.24397795,667.93,666.79,0.29994451]
[1746937394385,0.24397795,667.92,666.79,0.29994451]
[1746937394689,0.24397795,667.91,666.79,0.29994451]
[1746937395090,0.24397795,667.9,666.79,0.29994451]
[1746937395384,0.24397795,667.89,666.79,0.29994451]
[1746937395589,0.5047742,667.89,666.79,0.29994451]
[1746937395990,0.24397795,667.88,666.79,0.29994451]
[1746937396291,0.24397795,667.87,666.79,0.29994451]
[1746937396592,0.24397795,667.86,666.79,0.29994451]
[1746937396890,0.24397795,667.85,666.79,0.29994451]
[1746937397192,0.24397795,667.84,666.79,0.29994451]
[1746937397596,0.24397795,667.83,666.79,0.29994451]
[1746937397896,0.24397795,667.82,666.79,0.29994451]
[1746937398193,0.24397795,667.95,666.79,0.29994451]
[1746937398599,0.50477909,667.94,666.79,0.29994451]
[1746937399093,0.24397795,667.93,666.79,0.29994451]
[1746937399300,0.24397795,667.92,666.79,0.29994451]
[1746937399601,0.24397795,667.91,666.79,0.29994451]
[1746937399900,0.24397795,667.9,666.79,0.29994451]
[1746937400199,0.24397795,667.89,666.79,0.29994451]
[1746937400595,0.24397795,667.93,666.79,0.29994451]
[1746937400900,0.24397795,668.03,666.79,0.29994451]
[1746937401295,2.19486484,668.03,666.79,0.29994451]
[1746937401500,0.24397795,668.02,666.79,0.29994451]
[1746937401800,0.50477225,668.02,666.79,0.29994451]
[1746937402099,0.24397795,668.01,666.79,0.29994451]
[1746937403402,0.24397795,668.0,666.79,0.29994451]
[1746937403598,0.24397795,667.99,666.79,0.29994451]
[1746937404103,0.24397795,667.98,666.79,0.29994451]
[1746937404503,0.24397795,667.97,666.79,0.29994451]
[1746937404800,0.24397795,667.96,666.79,0.29994451]
[1746937405202,0.24397795,667.95,666.79,0.29994451]
[1746937405808,0.24397795,667.94,666.79,0.29994451]
[1746937406103,1.95088689,667.7,666.79,0.29994451]
[1746937406607,0.50499328,667.69,666.79,0.29994451]
[1746937407008,0.24397795,667.68,666.79,0.29994451]
[1746937407307,0.24397795,667.67,666.8,0.508]
[1746937407508,0.24397795,667.67,666.82,0.29993101]
[1746937407807,0.26101533,667.69,666.82,0.29993101]
[1746937408003,0.24401071,667.68,666.82,0.29993101]
[1746937408308,0.24401071,667.67,666.82,0.29993101]
[1746937408604,0.24401071,667.66,666.82,0.29993101]
[1746937408808,1.95088689,667.63,666.82,0.29993101]
[1746937409307,0.24401071,667.62,666.82,0.29993101]
[1746937410005,0.24401071,667.61,666.82,0.29993101]
[1746937410207,0.24401071,667.6,666.82,0.29993101]
[1746937410709,0.50485877,667.59,666.82,0.29993101]
[1746937410910,2.45574566,667.59,666.82,0.29993101]
[1746937411107,0.24401071,667.58,666.82,0.29993101]
[1746937413113,1.95088689,667.67,666.82,0.29993101]
[1746937413411,0.24401144,667.66,666.82,0.29993101]
[1746937413711,0.50485559,667.66,666.82,0.29993101]
[1746937414207,0.24401144,667.65,666.82,0.29993101]
[1746937415611,0.26084415,667.64,666.82,0.29993101]
[1746937416411,0.24401144,667.63,666.82,0.29993101]
[1746937417211,0.24401144,667.62,666.82,0.29993101]
[1746937417511,0.24401144,667.63,666.82,0.29993101]
[1746937417811,0.24401144,667.62,666.82,0.29993101]
[1746937418409,0.24401144,667.63,666.82,0.29993101]
[1746937418714,0.2608461,667.61,666.82,0.29993101]
[1746937419110,0.24401144,667.6,666.82,0.29993101]
[1746937420015,0.2608461,667.61,666.82,0.29993101]
[1746937420514,0.2440454,667.6,666.82,0.29993101]
[1746937421613,0.2608461,667.59,666.82,0.29993101]
[1746937421815,0.2440454,667.58,666.82,0.29993101]
[1746937424816,0.2440454,667.91,666.82,0.29993101]
[1746937425117,0.2440454,667.9,666.82,0.29993101]
[1746937425418,0.2440454,667.89,666.82,0.29993101]
[1746937425614,0.2440454,667.88,666.82,0.29993101]
[1746937426015,0.2440454,667.87,666.82,0.29993101]
[1746937426221,0.2440454,667.86,666.82,0.29993101]
[1746937426523,1.95088689,667.84,666.82,0.29993101]
[1746937427023,0.2440454,667.83,666.82,0.29993101]
[1746937427516,0.2440454,667.82,666.82,0.29993101]
[1746937428022,0.2440454,667.81,666.82,0.29993101]
[1746937428524,0.2440454,667.8,666.82,0.29993101]
[1746937428723,0.2440454,667.79,666.82,0.29993101]
[1746937429119,0.2440454,667.78,666.82,0.29993101]
[1746937429525,0.2440454,667.77,666.82,0.29993101]
[1746937430118,0.2440454,667.76,666.82,0.29993101]
[1746937430624,0.2440454,667.75,666.82,0.29993101]
[1746937430817,0.2440454,667.74,666.82,0.29993101]
[1746937431123,0.2440454,667.73,666.82,0.29993101]
[1746937431419,0.2440454,667.72,666.82,0.29993101]
[1746937431623,0.50489639,667.72,666.82,0.29993101]
[1746937431825,0.2440454,667.71,666.82,0.29993101]
[1746937432020,0.2440454,667.7,666.82,0.29993101]
[1746937432527,0.2440454,667.69,666.82,0.29993101]
[1746937432721,1.95088689,667.65,666.82,0.29993101]
[1746937433324,0.2440454,667.64,666.82,0.29993101]
[1746937433520,0.2440454,667.63,666.82,0.29993101]
[1746937433920,0.2440454,667.62,666.82,0.29993101]
[1746937434225,0.2440454,667.61,666.82,0.29993101]
[1746937434524,0.2440454,667.64,666.82,0.29993101]
[1746937434725,0.26087348,667.6,666.82,0.29993101]
[1746937434924,0.2440454,667.59,666.82,0.29993101]
[1746937437121,0.2440454,668.63,666.82,0.29993101]
[1746937437424,0.2440454,668.62,666.82,0.29993101]
[1746937437625,0.50506661,668.62,666.82,0.29993101]
[1746937438023,0.2440454,668.61,666.82,0.29993101]
[1746937438424,0.2440454,668.6,666.82,0.29993101]
[1746937438925,0.2440454,668.59,666.82,0.29993101]
[1746937439225,0.2440454,668.58,666.82,0.29993101]
[1746937439625,0.2440454,668.57,666.82,0.29993101]
[1746937439825,0.50485631,668.57,666.82,0.29993101]
[1746937440126,0.2440454,668.56,666.83,0.483]
[1746937440322,0.2440454,668.56,666.85,0.29991752]
[1746937441028,0.2440454,668.55,666.85,0.29991752]
[1746937441324,0.2440454,668.54,666.85,0.29991752]
[1746937441727,0.2440454,668.53,666.85,0.29991752]
[1746937442026,0.2440454,668.52,666.85,0.29991752]
[1746937442430,0.2440454,668.51,666.85,0.29991752]
[1746937442828,0.2440454,668.5,666.85,0.29991752]
[1746937443230,0.2440454,668.49,666.85,0.29991752]
[1746937443530,0.2440454,668.48,666.85,0.29991752]
[1746937443830,1.95088689,667.99,666.85,0.29991752]
[1746937444225,0.2440454,667.98,666.85,0.29991752]
[1746937444625,0.2440454,667.97,666.85,0.29991752]
[1746937444932,0.2440454,667.96,666.85,0.29991752]
[1746937445225,0.2440454,667.95,666.85,0.29991752]
[1746937445631,2.19493229,667.94,666.85,0.29991752]
[1746937445931,0.2440454,667.93,666.85,0.29991752]
[1746937446532,0.26085783,667.92,666.85,0.29991752]
[1746937446931,0.2440454,667.91,666.85,0.29991752]
[1746937448436,0.26085783,667.92,666.85,0.29991752]
[1746937448733,0.24409239,667.9,666.85,0.29991752]
[1746937448927,0.24409239,667.91,666.85,0.29991752]
[1746937451637,0.2608158,667.9,666.85,0.29991752]
[1746937452033,0.24409239,667.89,666.85,0.29991752]
[1746937458039,0.24409239,668.67,666.85,0.29991752]
[1746937458540,0.24409239,668.66,666.85,0.29991752]
[1746937458742,0.50483881,668.66,666.85,0.29991752]
[1746937458941,0.24409239,668.65,666.85,0.29991752]
[1746937459241,0.26074642,668.66,666.85,0.29991752]
[1746937459242,1.95088689,668.3,666.85,0.29991752]
[1746937459640,0.24409239,668.29,666.85,0.29991752]
[1746937460140,0.24409239,668.28,666.85,0.29991752]
[1746937460440,0.24409239,668.27,666.85,0.29991752]
[1746937460742,0.24409239,668.26,666.85,0.29991752]
[1746937461043,0.24409239,668.25,666.85,0.29991752]
[1746937461340,1.95088689,668.08,666.85,0.29991752]
[1746937461742,0.24409239,668.07,666.85,0.29991752]
[1746937462039,0.24409239,668.06,666.85,0.29991752]
[1746937462343,0.24409239,668.05,666.85,0.29991752]
[1746937462743,0.24409239,668.04,666.85,0.29991752]
[1746937463043,0.24409239,668.03,666.85,0.29991752]
[1746937463541,0.24409239,668.02,666.85,0.29991752]
[1746937463739,0.24409239,668.01,666.85,0.29991752]
[1746937466242,0.26078355,668.02,666.85,0.29991752]
[1746937466539,0.2439781,668.01,666.85,0.29991752]
[1746937466838,0.2439781,668.17,666.85,0.29991752]
[1746937467345,0.2439781,668.16,666.85,0.29991752]
[1746937467542,0.50475188,668.16,666.85,0.29991752]
[1746937467843,0.2439781,668.15,666.85,0.29991752]
[1746937468037,0.2439781,668.14,666.85,0.29991752]
[1746937468338,0.2439781,668.13,666.85,0.29991752]
[1746937468944,0.2439781,668.12,666.85,0.29991752]
[1746937469141,0.2439781,668.11,666.85,0.29991752]
[1746937469843,0.2439781,668.1,666.85,0.29991752]
[1746937470344,0.2439781,668.09,666.85,0.29991752]
[1746937470544,0.2439781,668.08,666.85,0.29991752]
[1746937471249,0.2439781,668.07,666.85,0.29991752]
[1746937471547,0.2439781,668.06,666.85,0.29991752]
[1746937471850,0.2439781,668.05,666.85,0.29991752]
[1746937472349,0.2439781,668.04,666.85,0.29991752]
[1746937472748,0.5047509,668.03,666.85,0.29991752]
[1746937473049,0.2439781,668.02,666.85,0.29991752]
[1746937473947,0.2439781,668.02,666.86,0.541]
[1746937474647,0.2439781,668.02,666.88,0.29990403]
[1746937475551,0.2439781,668.25,666.88,0.29990403]
[1746937475748,0.26075131,668.01,666.88,0.29990403]
[1746937475945,0.2439781,668.24,666.88,0.29990403]
[1746937476346,0.2439781,668.23,666.88,0.29990403]
[1746937476750,0.50472355,668.22,666.88,0.29990403]
[1746937477147,0.2439781,668.21,666.88,0.29990403]
[1746937477451,0.2439781,668.2,666.88,0.29990403]
[1746937477850,0.2439781,668.21,666.88,0.29990403]
[1746937478050,0.26074545,668.22,666.88,0.29990403]
[1746937478452,0.24395851,668.21,666.88,0.29990403]
[1746937479451,0.24395851,668.2,666.88,0.29990403]
[1746937479850,0.24395851,668.19,666.88,0.29990403]
[1746937480246,0.24395851,668.21,666.88,0.29990403]
[1746937480651,0.24395851,668.2,666.88,0.29990403]
[1746937480954,0.24395851,668.19,666.88,0.29990403]
[1746937481350,0.24395851,668.21,666.88,0.29990403]
[1746937481750,0.24395851,668.2,666.88,0.29990403]
[1746937481946,1.95088689,668.56,666.88,0.29990403]
[1746937482352,0.24395774,668.55,666.88,0.29990403]
[1746937482647,0.50468561,668.55,666.88,0.29990403]
[1746937482847,0.24395774,668.54,666.88,0.29990403]
[1746937483045,0.26072787,668.55,666.88,0.29990403]
[1746937483046,0.24395774,668.53,666.88,0.29990403]
[1746937483351,0.24395774,668.52,666.88,0.29990403]
[1746937483647,0.24395774,668.51,666.88,0.29990403]
[1746937484052,2.19484463,668.5,666.88,0.29990403]
[1746937484250,0.24395774,668.49,666.88,0.29990403]
[1746937484745,0.24395774,668.48,666.88,0.29990403]
[1746937485051,0.24395774,668.47,666.88,0.29990403]
[1746937485350,0.24395774,668.46,666.88,0.29990403]
[1746937485652,0.24395774,668.45,666.88,0.29990403]
[1746937485951,0.24395774,668.44,666.88,0.29990403]
[1746937486449,0.24395774,668.43,666.88,0.29990403]
[1746937486854,0.24395774,668.42,666.88,0.29990403]
[1746937487252,0.24395774,668.41,666.88,0.29990403]
[1746937487654,0.50466803,668.4,666.88,0.29990403]
[1746937487953,0.24395774,668.39,666.88,0.29990403]
[1746937488149,0.24395774,668.38,666.88,0.29990403]
[1746937488454,0.24395774,668.37,666.88,0.29990403]
[1746937488954,0.24395774,668.36,666.88,0.29990403]
[1746937489555,0.24395774,668.35,666.88,0.29990403]
[1746937489856,0.24395774,668.34,666.88,0.29990403]
[1746937490255,0.24395774,668.33,666.88,0.29990403]
[1746937490755,0.50469147,668.32,666.88,0.29990403]
[1746937491152,0.24395774,668.31,666.88,0.29990403]
[1746937491455,0.24395774,668.3,666.88,0.29990403]
[1746937491857,0.24395774,668.29,666.88,0.29990403]
[1746937492151,0.24395774,668.28,666.88,0.29990403]
[1746937492450,0.24395774,668.27,666.88,0.29990403]
[1746937492857,0.24395774,668.26,666.88,0.29990403]
[1746937493357,0.24395774,668.25,666.88,0.29990403]
[1746937493857,0.24395774,668.24,666.88,0.29990403]
[1746937494255,0.24395774,668.23,666.88,0.29990403]
[1746937494552,0.24395774,668.22,666.88,0.29990403]
[1746937494758,1.95088689,668.09,666.88,0.29990403]
[1746937494952,0.24395774,668.08,666.88,0.29990403]
[1746937495356,0.24395774,668.07,666.88,0.29990403]
[1746937495657,0.24395774,668.06,666.88,0.29990403]
[1746937495956,0.24395774,668.05,666.88,0.29990403]
[1746937496258,0.24395774,668.04,666.88,0.29990403]
[1746937496653,0.24395774,668.03,666.88,0.29990403]
[1746937496858,1.95088689,667.67,666.88,0.29990403]
[1746937497254,0.24395774,667.66,666.88,0.29990403]
[1746937499056,0.24395774,667.84,666.88,0.29990403]
[1746937499656,0.26078941,667.83,666.88,0.29990403]
[1746937499960,0.24395774,667.82,666.88,0.29990403]
[1746937500361,1.95088689,667.76,666.88,0.29990403]
[1746937500757,0.24395774,667.75,666.88,0.29990403]
[1746937502658,0.24395774,668.21,666.88,0.29990403]
[1746937502959,0.24395774,668.2,666.88,0.29990403]
[1746937503362,0.24395774,668.19,666.88,0.29990403]
[1746937503663,0.24395774,668.18,666.88,0.29990403]
[1746937504164,0.24395774,668.17,666.88,0.29990403]
[1746937504463,0.24395774,668.16,666.88,0.29990403]
[1746937504663,0.26093705,668.19,666.88,0.29990403]
[1746937504664,0.24395774,668.18,666.88,0.29990403]
[1746937505160,0.24395774,668.17,666.88,0.29990403]
[1746937505359,0.24395774,668.18,666.88,0.29990403]
[1746937505665,0.24395774,668.24,666.88,0.29990403]
[1746937506064,0.24395774,668.23,666.88,0.29990403]
[1746937506365,0.24395774,668.22,666.88,0.29990403]
[1746937506669,0.50489283,668.22,666.89,0.705]
[1746937506866,0.24395774,668.21,666.91,0.29989053]
[1746937507167,0.24395774,668.2,666.91,0.29989053]
[1746937507462,0.24395774,668.19,666.91,0.29989053]
[1746937507766,0.24395774,668.18,666.91,0.29989053]
[1746937508160,0.24395774,668.17,666.91,0.29989053]
[1746937508467,0.24395774,668.16,666.91,0.29989053]
[1746937508764,0.24395774,668.15,666.91,0.29989053]
[1746937509167,0.24395774,668.14,666.91,0.29989053]
[1746937509562,0.24395774,668.13,666.91,0.29989053]
[1746937510067,0.24395774,668.12,666.91,0.29989053]
[1746937510568,0.24395774,668.11,666.91,0.29989053]
[1746937510968,0.24395774,668.1,666.91,0.29989053]
[1746937511263,0.24395774,668.09,666.91,0.29989053]
[1746937511764,0.24395774,668.08,666.91,0.29989053]
[1746937511969,1.95088689,667.93,666.91,0.29989053]
[1746937512370,0.24395774,667.92,666.91,0.29989053]
[1746937512666,0.50474618,667.92,666.91,0.29989053]